fUSD/lending_fUSD_20260607
["ID","MTS","AMOUNT","RATE_DAILY","PERIOD"]
[424343313,1780768465000,-500.0,0.00038635,120]
[424343306,1780768465000,-500.0,0.00038635,120]
[424343308,1780768465000,-500.0,0.00038635,120]
[424343316,1780768465000,-500.0,0.00038635,120]
[424343326,1780768465000,-895.07,0.00038635,120]
[424343318,1780768465000,-500.0,0.00038635,120]
[424343325,1780768465000,-500.0,0.00038635,120]
[424343317,1780768465000,-500.0,0.00038635,120]
[424343327,1780768465000,-500.0,0.00038635,120]
[424343315,1780768465000,-500.0,0.00038635,120]
[424343324,1780768465000,-500.0,0.00038635,120]
[424343321,1780768465000,-500.0,0.00038635,120]
[424343328,1780768465000,-895.07,0.00038635,120]
[424343337,1780768465000,-500.0,0.00038635,120]
[424343330,1780768465000,-895.07,0.00038635,120]
[424343336,1780768465000,-895.07,0.00038635,120]
[424343338,1780768465000,-895.07,0.00038635,120]
[424343331,1780768465000,-500.0,0.00038635,120]
[424343333,1780768465000,-500.0,0.00038635,120]
[424343329,1780768465000,-500.0,0.00038635,120]
[424343334,1780768465000,-895.07,0.00038635,120]
[424343319,1780768465000,-500.0,0.00038635,120]
[424343323,1780768465000,-500.0,0.00038635,120]
[424343322,1780768465000,-500.0,0.00038635,120]
[424343320,1780768465000,-500.0,0.00038635,120]
[424343332,1780768465000,-895.07,0.00038635,120]
[424343416,1780768466000,-500.0,0.00038635,120]
[424343417,1780768466000,-500.0,0.00038635,120]
[424343415,1780768466000,-500.0,0.00038635,120]
[424343414,1780768466000,-500.0,0.00038635,120]
[424343413,1780768466000,-500.0,0.00038635,120]
[424343397,1780768466000,-591.74,0.00038635,120]
[424343410,1780768466000,-500.0,0.00038635,120]
[424343409,1780768466000,-500.0,0.00038635,120]
[424343411,1780768466000,-500.0,0.00038635,120]
[424343408,1780768466000,-500.0,0.00038635,120]
[424343407,1780768466000,-500.0,0.00038635,120]
[424343420,1780768466000,-500.0,0.00038635,120]
[424343418,1780768466000,-500.0,0.00038635,120]
[424343419,1780768466000,-500.0,0.00038635,120]
[424343435,1780768466000,-500.0,0.00038635,120]
[424343427,1780768466000,-500.0,0.00038635,120]
[424343424,1780768466000,-500.0,0.00038635,120]
[424343421,1780768466000,-500.0,0.00038635,120]
[424343425,1780768466000,-500.0,0.00038635,120]
[424343431,1780768466000,-500.0,0.00038635,120]
[424343422,1780768466000,-301.24316686,0.00038635,120]
[424343426,1780768466000,-500.0,0.00038635,120]
[424343428,1780768466000,-559.46821705,0.00038635,120]
[424343429,1780768466000,-171.1214001,0.00038635,120]
[424343432,1780768466000,-500.0,0.00038635,120]
[424343423,1780768466000,-500.0,0.00038635,120]
[424343433,1780768466000,-500.0,0.00038635,120]
[424343434,1780768466000,-500.0,0.00038635,120]
[424343399,1780768466000,-500.0,0.00038635,120]
[424343430,1780768466000,-500.0,0.00038635,120]
[424343400,1780768466000,-591.78364239,0.00038635,120]
[424343390,1780768466000,-500.0,0.00038635,120]
[424343398,1780768466000,-500.0,0.00038635,120]
[424343436,1780768466000,-500.0,0.00038635,30]
[424343379,1780768466000,-500.0,0.00038635,120]
[424343372,1780768466000,-591.74,0.00038635,120]
[424343381,1780768466000,-500.0,0.00038635,120]
[424343380,1780768466000,-500.0,0.00038635,120]
[424343373,1780768466000,-500.0,0.00038635,120]
[424343375,1780768466000,-500.0,0.00038635,120]
[424343374,1780768466000,-591.74,0.00038635,120]
[424343376,1780768466000,-591.74,0.00038635,120]
[424343377,1780768466000,-500.0,0.00038635,120]
[424343378,1780768466000,-591.74,0.00038635,120]
[424343383,1780768466000,-500.0,0.00038635,120]
[424343393,1780768466000,-591.74,0.00038635,120]
[424343382,1780768466000,-591.74,0.00038635,120]
[424343396,1780768466000,-500.0,0.00038635,120]
[424343384,1780768466000,-591.74,0.00038635,120]
[424343387,1780768466000,-500.0,0.00038635,120]
[424343391,1780768466000,-591.74,0.00038635,120]
[424343392,1780768466000,-500.0,0.00038635,120]
[424343388,1780768466000,-591.74,0.00038635,120]
[424343389,1780768466000,-591.74,0.00038635,120]
[424343386,1780768466000,-500.0,0.00038635,120]
[424343395,1780768466000,-591.74,0.00038635,120]
[424343402,1780768466000,-500.0,0.00038635,120]
[424343404,1780768466000,-500.0,0.00038635,120]
[424343403,1780768466000,-500.0,0.00038635,120]
[424343394,1780768466000,-500.0,0.00038635,120]
[424343406,1780768466000,-500.0,0.00038635,120]
[424343405,1780768466000,-500.0,0.00038635,120]
[424343401,1780768466000,-621.37571537,0.00038635,120]
[424343385,1780768466000,-591.74,0.00038635,120]
[424343437,1780768466000,-500.0,0.00038635,120]
[424343412,1780768466000,-500.0,0.00038635,120]
[424343444,1780768466000,-500.0,0.00038635,120]
[424343471,1780768466000,-630.01,0.00038635,120]
[424343474,1780768466000,-630.01,0.00038635,120]
[424343475,1780768466000,-630.01,0.00038635,120]
[424343485,1780768466000,-630.01,0.00038635,120]
[424343487,1780768466000,-630.01,0.00038635,120]
[424343486,1780768466000,-630.01,0.00038635,120]
[424343477,1780768466000,-630.01,0.00038635,120]
[424343476,1780768466000,-630.01,0.00038635,120]
[424343480,1780768466000,-630.01,0.00038635,120]
[424343479,1780768466000,-630.01,0.00038635,120]
[424343478,1780768466000,-630.01,0.00038635,120]
[424343483,1780768466000,-630.01,0.00038635,120]
[424343481,1780768466000,-630.01,0.00038635,120]
[424343484,1780768466000,-630.01,0.00038635,120]
[424343466,1780768466000,-500.0,0.00038635,30]
[424343482,1780768466000,-630.01,0.00038635,120]
[424343489,1780768466000,-630.01,0.00038635,120]
[424343493,1780768466000,-630.01,0.00038635,120]
[424343491,1780768466000,-630.01,0.00038635,120]
[424343492,1780768466000,-500.0,0.00038635,120]
[424343494,1780768466000,-364.34709328,0.00038635,120]
[424343496,1780768466000,-630.01,0.00038635,120]
[424343499,1780768466000,-500.0,0.00038635,60]
[424343498,1780768466000,-500.0,0.00038635,60]
[424343497,1780768466000,-630.17574627,0.00038635,120]
[424343500,1780768466000,-500.0,0.00038635,60]
[424343495,1780768466000,-630.01,0.00038635,120]
[424343501,1780768466000,-500.0,0.00038635,60]
[424343503,1780768466000,-500.0,0.00038635,60]
[424343438,1780768466000,-500.0,0.00038635,120]
[424343488,1780768466000,-500.0,0.00038635,120]
[424343470,1780768466000,-630.01,0.00038635,120]
[424343490,1780768466000,-500.0,0.00038635,120]
[424343472,1780768466000,-630.01,0.00038635,120]
[424343443,1780768466000,-500.0,0.00038635,30]
[424343469,1780768466000,-448.10847698,0.00038635,30]
[424343439,1780768466000,-500.0,0.00038635,30]
[424343446,1780768466000,-500.0,0.00038635,120]
[424343441,1780768466000,-500.0,0.00038635,30]
[424343442,1780768466000,-500.0,0.00038635,120]
[424343440,1780768466000,-500.0,0.00038635,120]
[424343445,1780768466000,-500.0,0.00038635,30]
[424343458,1780768466000,-500.0,0.00038635,120]
[424343460,1780768466000,-500.0,0.00038635,120]
[424343459,1780768466000,-500.0,0.00038635,30]
[424343447,1780768466000,-500.0,0.00038635,30]
[424343450,1780768466000,-500.0,0.00038635,120]
[424343449,1780768466000,-500.0,0.00038635,30]
[424343457,1780768466000,-500.0,0.00038635,30]
[424343448,1780768466000,-500.0,0.00038635,120]
[424343463,1780768466000,-500.0,0.00038635,30]
[424343452,1780768466000,-500.0,0.00038635,120]
[424343453,1780768466000,-500.0,0.00038635,30]
[424343456,1780768466000,-500.0,0.00038635,120]
[424343454,1780768466000,-500.0,0.00038635,120]
[424343455,1780768466000,-500.0,0.00038635,30]
[424343461,1780768466000,-500.0,0.00038635,30]
[424343473,1780768466000,-630.01,0.00038635,120]
[424343464,1780768466000,-500.0,0.00038635,30]
[424343502,1780768466000,-684.43,0.00038635,120]
[424343467,1780768466000,-500.0,0.00038635,30]
[424343468,1780768466000,-500.0,0.00038635,30]
[424343462,1780768466000,-153.60707525,0.00038635,120]
[424343465,1780768466000,-500.0,0.00038635,30]
[424343451,1780768466000,-500.0,0.00038635,30]
[424343531,1780768467000,-500.0,0.00038635,60]
[424343538,1780768467000,-684.43,0.00038635,120]
[424343525,1780768467000,-500.0,0.00038635,60]
[424343532,1780768467000,-684.43,0.00038635,120]
[424343526,1780768467000,-684.43,0.00038635,120]
[424343527,1780768467000,-500.0,0.00038635,60]
[424343528,1780768467000,-684.43,0.00038635,120]
[424343541,1780768467000,-684.43,0.00038635,120]
[424343533,1780768467000,-500.0,0.00038635,60]
[424343530,1780768467000,-684.43,0.00038635,120]
[424343535,1780768467000,-648.65499954,0.00038635,60]
[424343534,1780768467000,-684.43,0.00038635,120]
[424343536,1780768467000,-684.43,0.00038635,120]
[424343544,1780768467000,-429.11886289,0.00038635,120]
[424343524,1780768467000,-684.43,0.00038635,120]
[424343529,1780768467000,-500.0,0.00038635,60]
[424343523,1780768467000,-500.0,0.00038635,60]
[424343513,1780768467000,-500.0,0.00038635,60]
[424343519,1780768467000,-500.0,0.00038635,60]
[424343537,1780768467000,-684.43,0.00038635,120]
[424343505,1780768467000,-500.0,0.00038635,60]
[424343510,1780768467000,-684.43,0.00038635,120]
[424343506,1780768467000,-684.43,0.00038635,120]
[424343504,1780768467000,-684.43,0.00038635,120]
[424343508,1780768467000,-684.43,0.00038635,120]
[424343511,1780768467000,-500.0,0.00038635,60]
[424343509,1780768467000,-500.0,0.00038635,60]
[424343512,1780768467000,-684.43,0.00038635,120]
[424343514,1780768467000,-684.43,0.00038635,120]
[424343507,1780768467000,-500.0,0.00038635,60]
[424343517,1780768467000,-500.0,0.00038635,60]
[424343518,1780768467000,-684.43,0.00038635,120]
[424343515,1780768467000,-500.0,0.00038635,60]
[424343516,1780768467000,-684.43,0.00038635,120]
[424343520,1780768467000,-684.43,0.00038635,120]
[424343522,1780768467000,-684.43,0.00038635,120]
[424343521,1780768467000,-500.0,0.00038635,60]
[424343540,1780768467000,-684.43,0.00038635,120]
[424343550,1780768467000,-500.0,0.00038635,120]
[424343542,1780768467000,-684.59644426,0.00038635,120]
[424343564,1780768467000,-500.0,0.00038635,120]
[424343565,1780768467000,-500.0,0.00038635,120]
[424343567,1780768467000,-500.0,0.00038635,120]
[424343566,1780768467000,-500.0,0.00038635,120]
[424343569,1780768467000,-350.23,0.00038635,120]
[424343570,1780768467000,-500.0,0.00038635,120]
[424343571,1780768467000,-500.0,0.00038635,120]
[424343562,1780768467000,-500.0,0.00038635,120]
[424343574,1780768467000,-500.0,0.00038635,120]
[424343576,1780768467000,-500.0,0.00038635,120]
[424343575,1780768467000,-500.0,0.00038635,120]
[424343577,1780768467000,-500.0,0.00038635,120]
[424343578,1780768467000,-500.0,0.00038635,120]
[424343579,1780768467000,-500.0,0.00038635,120]
[424343580,1780768467000,-500.0,0.00038635,120]
[424343539,1780768467000,-684.43,0.00038635,120]
[424343573,1780768467000,-500.0,0.00038635,120]
[424343563,1780768467000,-500.0,0.00038635,120]
[424343572,1780768467000,-500.0,0.00038635,120]
[424343559,1780768467000,-500.0,0.00038635,120]
[424343561,1780768467000,-500.0,0.00038635,120]
[424343545,1780768467000,-500.0,0.00038635,120]
[424343548,1780768467000,-780.0,0.00038635,120]
[424343551,1780768467000,-500.0,0.00038635,120]
[424343554,1780768467000,-500.0,0.00038635,120]
[424343553,1780768467000,-500.0,0.00038635,120]
[424343547,1780768467000,-527.96075048,0.00038635,120]
[424343549,1780768467000,-500.0,0.00038635,120]
[424343543,1780768467000,-253.39472738,0.00038635,120]
[424343546,1780768467000,-500.0,0.00038635,120]
[424343555,1780768467000,-500.0,0.00038635,120]
[424343556,1780768467000,-500.0,0.00038635,120]
[424343558,1780768467000,-440.53946858,0.00038635,120]
[424343568,1780768467000,-500.0,0.00038635,120]
[424343557,1780768467000,-500.0,0.00038635,120]
[424343560,1780768467000,-299.05562674,0.00038635,120]
[424343552,1780768467000,-500.0,0.00038635,120]
[424343594,1780768468000,-500.0,0.00038635,120]
[424343604,1780768468000,-150.0,0.00038635,120]
[424343599,1780768468000,-500.0,0.00038635,120]
[424343605,1780768468000,-150.0,0.00038635,120]
[424343610,1780768468000,-151.0,0.00038635,120]
[424343607,1780768468000,-150.0,0.00038635,120]
[424343608,1780768468000,-150.0,0.00038635,120]
[424343609,1780768468000,-151.0,0.00038635,120]
[424343611,1780768468000,-151.0,0.00038635,120]
[424343614,1780768468000,-151.0,0.00038635,120]
[424343613,1780768468000,-151.0,0.00038635,120]
[424343617,1780768468000,-151.0,0.00038635,120]
[424343616,1780768468000,-151.0,0.00038635,120]
[424343615,1780768468000,-151.0,0.00038635,120]
[424343612,1780768468000,-151.0,0.00038635,120]
[424343602,1780768468000,-150.0,0.00038635,120]
[424343606,1780768468000,-150.0,0.00038635,120]
[424343598,1780768468000,-500.0,0.00038635,120]
[424343589,1780768468000,-500.0,0.00038635,120]
[424343597,1780768468000,-103313.0,0.00038635,60]
[424343590,1780768468000,-500.0,0.00038635,120]
[424343588,1780768468000,-500.0,0.00038635,120]
[424343586,1780768468000,-500.0,0.00038635,120]
[424343587,1780768468000,-500.0,0.00038635,120]
[424343581,1780768468000,-532.49,0.00038635,120]
[424343583,1780768468000,-500.0,0.00038635,120]
[424343582,1780768468000,-3823.897532,0.00038635,90]
[424343600,1780768468000,-500.36267691,0.00038635,120]
[424343591,1780768468000,-500.0,0.00038635,120]
[424343584,1780768468000,-500.0,0.00038635,120]
[424343592,1780768468000,-500.0,0.00038635,120]
[424343593,1780768468000,-500.0,0.00038635,120]
[424343603,1780768468000,-150.0,0.00038635,120]
[424343596,1780768468000,-26000.0,0.00038635,120]
[424343595,1780768468000,-165.53,0.00038635,120]
[424343601,1780768468000,-20000.0,0.00038635,120]
[424343585,1780768468000,-500.0,0.00038635,120]
[424343619,1780768468000,-151.0,0.00038635,120]
[424343625,1780768468000,-152.11441845,0.00038635,120]
[424343630,1780768468000,-500.0,0.00038635,120]
[424343644,1780768468000,-500.0,0.00038635,120]
[424343639,1780768468000,-217.77090728,0.00038635,30]
[424343646,1780768468000,-500.0,0.00038635,120]
[424343655,1780768468000,-500.0,0.00038635,120]
[424343656,1780768468000,-225.94133267,0.00038635,120]
[424343645,1780768468000,-500.0,0.00038635,120]
[424343651,1780768468000,-455.21465744,0.00038635,120]
[424343635,1780768468000,-500.0,0.00038635,30]
[424343647,1780768468000,-500.0,0.00038635,120]
[424343650,1780768468000,-489.21865282,0.00038635,120]
[424343648,1780768468000,-500.0,0.00038635,120]
[424343654,1780768468000,-500.0,0.00038635,120]
[424343653,1780768468000,-500.0,0.00038635,120]
[424343652,1780768468000,-500.0,0.00038635,120]
[424343657,1780768468000,-1834107.04788546,0.00038635,20]
[424343629,1780768468000,-500.0,0.00038635,120]
[424343649,1780768468000,-500.0,0.00038635,120]
[424343641,1780768468000,-500.0,0.00038635,120]
[424343643,1780768468000,-500.0,0.00038635,120]
[424343626,1780768468000,-529.23526602,0.00038635,120]
[424343620,1780768468000,-500.92263772,0.00038635,120]
[424343627,1780768468000,-500.0,0.00038635,120]
[424343621,1780768468000,-114771.71582962,0.00038635,120]
[424343622,1780768468000,-367.84610828,0.00038635,120]
[424343624,1780768468000,-500.0,0.00038635,120]
[424343628,1780768468000,-500.0,0.00038635,120]
[424343636,1780768468000,-270.12,0.00038635,120]
[424343618,1780768468000,-151.0,0.00038635,120]
[424343623,1780768468000,-197506.33,0.00038635,120]
[424343632,1780768468000,-500.0,0.00038635,120]
[424343633,1780768468000,-500.0,0.00038635,120]
[424343640,1780768468000,-500.0,0.00038635,120]
[424343642,1780768468000,-500.0,0.00038635,120]
[424343634,1780768468000,-500.0,0.00038635,120]
[424343637,1780768468000,-500.0,0.00038635,120]
[424343638,1780768468000,-500.0,0.00038635,120]
[424343631,1780768468000,-500.0,0.00038635,120]
[424343660,1780768478000,-879.64971308,0.00038635,60]
[424343662,1780768478000,-238.360582,0.00037808,30]
[424343658,1780768478000,-553.523,0.00038635,60]
[424343661,1780768478000,-187.71827,0.00037808,30]
[424343665,1780768478000,-435.822462,0.00037808,30]
[424343663,1780768478000,-398.041148,0.00037808,30]
[424343666,1780768478000,-295.365711,0.00038635,60]
[424343659,1780768478000,-12936.256164,0.00038635,60]
[424343664,1780768478000,-22.756627,0.00037808,30]
[424343667,1780768478000,-2445.4995906,9.544e-05,2]
[424343677,1780768479000,152.0,8.869e-05,30]
[424343676,1780768479000,152.0,7.68e-05,7]
[424343674,1780768479000,-2534.04315159,0.00031809,2]
[424343675,1780768479000,-1055.240201,0.00031809,2]
[424343673,1780768479000,-3642.0,0.00028809,2]
[424343672,1780768479000,-4338.6362963,9.544e-05,2]
[424343669,1780768479000,-544.30361766,9.544e-05,2]
[424343670,1780768479000,-1923.90000001,9.544e-05,2]
[424343668,1780768479000,-130.68110008,9.544e-05,2]
[424343671,1780768479000,-616.96939535,9.544e-05,2]
[424343678,1780768481000,1662.54,0.00027443,120]
[424343694,1780769091000,8171.51254041,7.39e-05,9]
[424343695,1780769091000,38748.11909217,7.39e-05,9]
[424343698,1780769346000,-156.861,7.39e-05,2]
[424343700,1780769346000,-223.97389111,7.54e-05,2]
[424343699,1780769346000,-500.0,7.54e-05,2]
[424343697,1780769346000,-1854.381,7.39e-05,2]
[424343720,1780769433000,-595.91686399,8.219e-05,2]
[424343717,1780769433000,-215.80795776,7.62e-05,2]
[424343714,1780769433000,-408.59361922,7.54e-05,2]
[424343710,1780769433000,-500.0,7.54e-05,2]
[424343712,1780769433000,-371.96994771,7.54e-05,2]
[424343713,1780769433000,-500.30669836,7.54e-05,2]
[424343711,1780769433000,-347.54683345,7.54e-05,2]
[424343708,1780769433000,-500.0,7.54e-05,2]
[424343707,1780769433000,-500.0,7.54e-05,2]
[424343706,1780769433000,-282.98151432,7.54e-05,2]
[424343704,1780769433000,-194.51916432,7.54e-05,2]
[424343705,1780769433000,-217.01848568,7.54e-05,2]
[424343721,1780769433000,-500.0,8.219e-05,2]
[424343709,1780769433000,-500.0,7.54e-05,2]
[424343718,1780769433000,-500.0,8.219e-05,2]
[424343715,1780769433000,-164.22156921,7.54e-05,2]
[424343716,1780769433000,-177.69570913,7.54e-05,2]
[424343735,1780769433000,-275.75637362,0.000125,2]
[424343734,1780769433000,-2828.10168465,0.000125,2]
[424343732,1780769433000,-1953.39,0.000125,2]
[424343736,1780769433000,-1682.30867738,0.000125,2]
[424343730,1780769433000,-1365.93,0.000125,2]
[424343731,1780769433000,-14204.87,0.000125,2]
[424343728,1780769433000,-3751.59,0.00012378,2]
[424343729,1780769433000,-568.82144066,0.000125,2]
[424343726,1780769433000,-10759.95264465,0.00011099,2]
[424343727,1780769433000,-8762.75,0.00012378,2]
[424343724,1780769433000,-150.04266169,0.00011099,2]
[424343719,1780769433000,-500.0,8.219e-05,2]
[424343725,1780769433000,-10759.95264471,0.00011099,2]
[424343723,1780769433000,-326.92202823,9.765e-05,2]
[424343722,1780769433000,-250.0,8.294e-05,2]
[424343733,1780769433000,-67178.33975137,0.000125,2]
[424343738,1780769438000,-659.11303048,0.000125,2]
[424343740,1780769438000,-560.469583,0.000125,2]
[424343739,1780769438000,-762.15,0.000125,2]
[424343742,1780769438000,-4123.7027034,0.000125,2]
[424343741,1780769438000,-2043.0,0.000125,2]
[424343743,1780769438000,-2670.10974202,0.000125,2]
[424343748,1780769440000,-5277.58322911,0.000125,2]
[424343749,1780769441000,-410.295,0.000125,2]
[424343759,1780769443000,-2418.69784934,0.000125,2]
[424343761,1780769443000,-794.21926914,0.000125,2]
[424343760,1780769443000,-945.86790517,0.000125,2]
[424343768,1780769446000,-3645.00397564,0.000125,2]
[424343767,1780769446000,-657.2732422,0.000125,2]
[424343805,1780769447000,-1555.5,0.00013886,2]
[424343798,1780769447000,-500.0,0.00013699,2]
[424343815,1780769447000,-151.0,0.00014598,2]
[424343817,1780769447000,-1148.61238259,0.00014982,2]
[424343816,1780769447000,-151.0,0.00014598,2]
[424343804,1780769447000,-3284.08,0.00013776,2]
[424343814,1780769447000,-151.0,0.00014598,2]
[424343812,1780769447000,-150.0,0.000145,2]
[424343803,1780769447000,-200.0,0.00013699,2]
[424343799,1780769447000,-500.0,0.00013699,2]
[424343813,1780769447000,-151.0,0.00014598,2]
[424343806,1780769447000,-1030.0,0.00013943,2]
[424343826,1780769447000,-300.0,0.00016,2]
[424343808,1780769447000,-250.0,0.00014,2]
[424343809,1780769447000,-10759.95264465,0.00014379,2]
[424343810,1780769447000,-1107.63007,0.00014434,2]
[424343811,1780769447000,-1613.0535,0.00014434,2]
[424343830,1780769447000,-150.0,0.000163,2]
[424343821,1780769447000,-1191.11104074,0.0001553,2]
[424343834,1780769447000,-166.66,0.00016998,2]
[424343831,1780769447000,-150.0,0.00016506,2]
[424343833,1780769447000,-1865.36488656,0.00016626,2]
[424343819,1780769447000,-1672.7364795,0.00014982,2]
[424343832,1780769447000,-1280.88388877,0.00016626,2]
[424343823,1780769447000,-1734.62772924,0.0001553,2]
[424343794,1780769447000,-500.0,0.00013699,2]
[424343827,1780769447000,-500.0,0.00016011,2]
[424343807,1780769447000,-1068.11,0.00013943,2]
[424343802,1780769447000,-500.0,0.00013699,2]
[424343783,1780769447000,-500.0,0.00013699,2]
[424343800,1780769447000,-500.0,0.00013699,2]
[424343828,1780769447000,-1235.18214925,0.00016078,2]
[424343769,1780769447000,-24871.69798348,0.000125,2]
[424343773,1780769447000,-1500.0,0.00013338,2]
[424343771,1780769447000,-150.99,0.000125,2]
[424343770,1780769447000,-9999.99,0.000125,2]
[424343772,1780769447000,-299.99,0.000125,2]
[424343774,1780769447000,-500.0,0.00013699,2]
[424343775,1780769447000,-500.0,0.00013699,2]
[424343776,1780769447000,-500.0,0.00013699,2]
[424343779,1780769447000,-500.0,0.00013699,2]
[424343778,1780769447000,-500.0,0.00013699,2]
[424343777,1780769447000,-500.0,0.00013699,2]
[424343781,1780769447000,-500.0,0.00013699,2]
[424343796,1780769447000,-596.49979496,0.00013699,2]
[424343791,1780769447000,-500.0,0.00013699,2]
[424343792,1780769447000,-500.0,0.00013699,2]
[424343782,1780769447000,-500.0,0.00013699,2]
[424343784,1780769447000,-500.0,0.00013699,2]
[424343790,1780769447000,-500.0,0.00013699,2]
[424343786,1780769447000,-500.0,0.00013699,2]
[424343787,1780769447000,-500.0,0.00013699,2]
[424343789,1780769447000,-500.0,0.00013699,2]
[424343785,1780769447000,-500.0,0.00013699,2]
[424343788,1780769447000,-500.0,0.00013699,2]
[424343793,1780769447000,-500.0,0.00013699,2]
[424343795,1780769447000,-500.0,0.00013699,2]
[424343797,1780769447000,-500.0,0.00013699,2]
[424343801,1780769447000,-500.0,0.00013699,2]
[424343780,1780769447000,-500.0,0.00013699,2]
[424343825,1780769447000,-1000.0,0.00015666,2]
[424343855,1780769447000,-440.16689882,0.000182,2]
[424343842,1780769447000,-2005.9555727,0.00017722,2]
[424343868,1780769447000,-151.0,0.0001827,2]
[424343869,1780769447000,-151.0,0.0001827,2]
[424343867,1780769447000,-151.0,0.0001827,2]
[424343870,1780769447000,-151.0,0.0001827,2]
[424343872,1780769447000,-151.0,0.0001827,2]
[424343875,1780769447000,-151.0,0.0001827,2]
[424343877,1780769447000,-151.0,0.0001827,2]
[424343878,1780769447000,-400.0,0.000183,2]
[424343879,1780769447000,-360.66532224,0.000184,2]
[424343887,1780769447000,-360.66532224,0.000187,2]
[424343876,1780769447000,-151.0,0.0001827,2]
[424343880,1780769447000,-165.95620521,0.000184,2]
[424343882,1780769447000,-166.66,0.00018429,2]
[424343886,1780769447000,-200.0,0.00018549,2]
[424343881,1780769447000,-440.16689882,0.000184,2]
[424343884,1780769447000,-360.66532224,0.000185,2]
[424343885,1780769447000,-440.16689882,0.000185,2]
[424343883,1780769447000,-400.0,0.000185,2]
[424343889,1780769447000,-166.66,0.00018787,2]
[424343891,1780769447000,-1481.2378076,0.00018818,2]
[424343893,1780769447000,-3284.08,0.00019286,2]
[424343895,1780769447000,-2236.95670847,0.00019366,2]
[424343888,1780769447000,-440.16689882,0.000187,2]
[424343892,1780769447000,-2157.14243826,0.00018818,2]
[424343894,1780769447000,-1536.04360648,0.00019366,2]
[424343890,1780769447000,-500.0,0.00018812,2]
[424343829,1780769447000,-1798.80895522,0.00016078,2]
[424343871,1780769447000,-151.0,0.0001827,2]
[424343865,1780769447000,-2080.17592889,0.0001827,2]
[424343866,1780769447000,-151.0,0.0001827,2]
[424343862,1780769447000,-151.0,0.0001827,2]
[424343835,1780769447000,-1328.27659266,0.00017174,2]
[424343845,1780769447000,-150.04266169,0.00017829,2]
[424343843,1780769447000,-400.0,0.000178,2]
[424343846,1780769447000,-400.0,0.00018,2]
[424343844,1780769447000,-10759.95264465,0.00017821,2]
[424343847,1780769447000,-360.66532224,0.00018,2]
[424343840,1780769447000,-166.66,0.00017714,2]
[424343836,1780769447000,-1934.38338736,0.00017174,2]
[424343841,1780769447000,-1377.42282658,0.00017722,2]
[424343838,1780769447000,-166.66,0.00017356,2]
[424343837,1780769447000,-1330.03,0.0001733,2]
[424343864,1780769447000,-151.0,0.0001827,2]
[424343848,1780769447000,-165.95620521,0.00018,2]
[424343853,1780769447000,-360.66532224,0.000182,2]
[424343839,1780769447000,-2500.0,0.00017422,2]
[424343858,1780769447000,-1428.38747117,0.0001827,2]
[424343873,1780769447000,-151.0,0.0001827,2]
[424343874,1780769447000,-151.0,0.0001827,2]
[424343851,1780769447000,-166.66,0.00018072,2]
[424343859,1780769447000,-151.0,0.0001827,2]
[424343861,1780769447000,-151.0,0.0001827,2]